[Event "Dutch Meesterklasse 2024-25"]
[Site "Netherlands"]
[Date "2024.09.22"]
[Round "1.6"]
[White "Hommerson, Paul"]
[Black "Godzwon, Iwo"]
[Result "1/2-1/2"]
[ECO "E11"]
[WhiteElo "2289"]
[BlackElo "2404"]
[Annotator "TA"]
[PlyCount "88"]
[EventDate "2024.09.21"]
[EventType "team-tourn"]
[EventCountry "NED"]
[SourceTitle "playchess.com"]
[Source "ChessBase"]
[SourceQuality "1"]
[TimeControl "40/5400+30:1800+30"]

{[%evp 17,88,37,43,28,50,49,77,61,71,75,55,81,80,82,76,50,29,21,25,0,12,0,0,0,-4,-18,-10,-3,0,0,0,0,0,-29,-8,-12,0,0,0,0,0,0,8,8,14,13,18,8,28,16,17,0,8,0,20,25,265,240,240,0,0,0,202,8,71,19,13,0,73,0,8,0,61]} 1. d4 {[%emt 0:00:06]} Nf6 {[%emt 0:00:03]} 2. c4 {[%emt 0:00:05]} e6 {[%emt 0:00:03]} 3. Nf3 {[%emt 0:00:14]} Bb4+ {[%emt 0:00:05]} 4. Bd2 {[%emt 0:00:27]} c5 {[%emt 0:00:04]} 5. Bxb4 {[%emt 0:01:00]} cxb4 {[%emt 0:00:07]} 6. g3 {[%emt 0:00:57]} O-O {[%emt 0:00:05]} 7. Bg2 {[%emt 0:00:33]} d6 {[%emt 0:00:03]} 8. O-O {[%emt 0:01:24]} a5 {[%emt 0:00:04]} 9. a3 {[%emt 0:06:52]} Na6 {[%emt 0:00:04]} 10. axb4 {[%emt 0:02:20]} axb4 {[%emt 0:14:23]} 11. Nbd2 {[%emt 0:17:21]} Bd7 {[%emt 0:06:14][%cal Bc8d7,Bd7c6,Bc6b5,Bb5d3][%mdl 32]} 12. e4 {[%emt 0:02:09] White is better.} Bc6 {[%emt 0:00:14]} 13. Re1 {[%emt 0:08:13]} Re8 {[%emt 0:00:25]} 14. d5 {[%emt 0:06:34]} exd5 {[%emt 0:06:32]} 15. cxd5 {[%emt 0:03:26]} Bb5 {[%emt 0:08:08]} 16. Nd4 {[%emt 0:03:25]} Bd3 {[%emt 0:18:55]} 17. Nf5 {[%emt 0:17:29] [#] Hoping for Qf3.} g6 $1 {[%emt 0:05:04]} 18. Re3 {[%emt 0:14:53]} (18. Nh6+ {seems wilder.} Kg7 19. Nf3 Bxe4 20. Nxf7 Qb6 21. N7g5) 18... gxf5 {[%emt 0:12:28]} 19. Rxd3 {[%emt 0:00:02]} fxe4 {[%emt 0:00:05]} 20. Re3 {[%emt 0:02:09]} Nc5 {[%emt 0:01:46]} (20... Nxd5 $2 {loses.} 21. Rxe4 Rxe4 22. Bxe4 $18 (22. Nxe4 Nac7 $18)) 21. Rxa8 {[%emt 0:02:36]} Qxa8 {[%emt 0:00:03]} 22. Nc4 {[%emt 0:01:14]} Qd8 {[%emt 0:10:39]} 23. Re2 {[%emt 0:01:59]} Ng4 {[%emt 0:06:54]} 24. Qd4 {[%emt 0:00:49]} f5 {[%emt 0:06:51]} 25. f3 {[%emt 0:02:17]} exf3 {[%emt 0:00:08]} 26. Bxf3 {[%emt 0:00:13][%cal Bg2f3,Bf3e2,Be2c4][%mdl 32]} Rxe2 {[%emt 0:00:32]} 27. Bxe2 {[%emt 0:00:13]} Nf6 {[%emt 0:01:48]} 28. Ne3 {[%emt 0:00:41][%csl LRb4,LRf5]} Qe7 {[%emt 0:00:49]} 29. Nxf5 {[%emt 0:04:06]} Qe5 {[%emt 0:00:14]} 30. Qxe5 {[%emt 0:00:21]} dxe5 $11 {[%emt 0:00:02][%mdl 4096] Endgame. KBN-KNN} 31. d6 {[%emt 0:00:23]} Kf7 {[%emt 0:00:05]} 32. Bc4+ {[%emt 0:00:13]} Ke8 {[%emt 0:00:10]} 33. Bb5+ {[%emt 0:00:23]} Kf7 {[%emt 0:00:46]} 34. Bc4+ {[%emt 0:00:11]} Ke8 {[%emt 0:00:02]} 35. Bb5+ {[%emt 0:00:20]} Kf7 $1 {[%emt 0:00:39]} 36. g4 {[%emt 0:00:58]} Ke6 $2 {[%emt 0:00:39]} (36... e4 $11 {and Black is okay.}) 37. Bc4+ $18 {[%emt 0:00:21]} Kd7 {[%emt 0:00:03]} 38. Bb5+ $2 {[%emt 0:00:28]} (38. g5 $18 Nfe4 39. h4) 38... Ke6 $11 {[%emt 0:00:02]} 39. Bc4+ $2 {[%emt 0:00:18]} (39. h3 $11 e4 40. Kf2) 39... Kd7 $1 $18 {[%emt 0:00:02]} 40. h3 {[%emt 0:01:32]} ({Only move:} 40. g5 $18 Nfe4 41. h4) 40... Nce4 {[%emt 0:03:15]} (40... Nfe4 $11) 41. Bb5+ {[%emt 0:21:02]} (41. Kg2 $16) 41... Ke6 $11 {[%emt 0:00:02]} 42. Bc4+ {[%emt 0:00:15]} ({White should play} 42. Bd3 $11) 42... Kd7 $16 {[%emt 0:00:02] [#]} 43. Bb5+ {[%emt 0:03:14]} ({Better is} 43. Kg2 $1 $16) 43... Ke6 $11 {[%emt 0:00:02]} 44. Bc4+ {[%emt 0:02:59]} (44. h4 $11 Nxd6 45. Nxd6 Kxd6 46. g5) 44... Kd7 {[%emt 0:00:03] Weighted Error Value: White=0.24 (precise) /Black=0.13 (very precise) .  Loses game:     	---       	Black=1      Missed win:     	White=2     	---        Mistake:       	White=5     	Black=1      Inaccurate:     	White=2     	Black=1      OK:         	White=10    	Black=11     Best:        	White=3     	Black=6      Strong:       	---       	Black=3} 1/2-1/2

[Event "Dutch Meesterklasse 2024-25"]
[Site "Netherlands"]
[Date "2024.09.22"]
[Round "1.7"]
[White "Karsay, Pascal"]
[Black "Ootes, Lars"]
[Result "1-0"]
[ECO "B08"]
[WhiteElo "2365"]
[BlackElo "2383"]
[Annotator "TA"]
[PlyCount "131"]
[EventDate "2024.09.21"]
[EventType "team-tourn"]
[EventCountry "NED"]
[SourceTitle "playchess.com"]
[Source "ChessBase"]
[SourceQuality "1"]
[TimeControl "40/5400+30:1800+30"]

{[%evp 43,131,46,56,41,118,85,87,36,73,74,78,74,104,90,91,0,0,0,0,0,0,0,0,0,0,0,0,0,22,25,73,0,25,14,182,182,245,182,176,184,443,454,1019,1012,870,808,888,605,769,728,855,806,778,754,2193,2097,3308,2501,2502,3457,1556,2328,1860,896,896,896,29967,29970,29973,29974,29974,29975,29975,29976,29976,29977,29977,29978,29978,29979,29979,29980,29980,29981,29981,29982,29982,29983,29983,29984]} 1. Nf3 {[%emt 0:00:04]} d6 {[%emt 0:00:12]} 2. d4 {[%emt 0:00:32]} g6 {[%emt 0:00:10]} 3. e4 {[%emt 0:00:14]} Nf6 {[%emt 0:04:43]} 4. Nc3 {[%emt 0:01:39]} Bg7 {[%emt 0:00:14]} 5. Be2 {[%emt 0:00:18]} O-O {[%emt 0:00:11]} 6. O-O {[%emt 0:00:13]} Nc6 {[%emt 0:02:20]} 7. d5 {[%emt 0:02:06]} Ne5 {[%emt 0:03:14]} 8. Nxe5 {[%emt 0:02:21]} dxe5 {[%emt 0:00:04]} 9. Be3 {[%emt 0:02:57] B08: Pirc Defence: Classical System.} a6 {[%emt 0:12:30]} 10. a4 {[%emt 0:01:09]} e6 {[%emt 0:08:52]} 11. Qd2 {[%emt 0:18:30]} Qe7 $146 {[%emt 0:12:11]} ({Predecessor:} 11... exd5 12. exd5 Bf5 13. Rad1 Re8 14. h3 h5 15. Rfe1 Qd6 16. Bc4 Nd7 17. Ne2 h4 {0-1 Szabo,Z (2429)-Burnett,R (2437) Budapest FS02 GM 2000 (2)}) 12. a5 {[%emt 0:12:07]} Rd8 {[%emt 0:03:51]} 13. Rfd1 {[%emt 0:04:14]} Bd7 {[%emt 0:14:58]} 14. Bg5 {[%emt 0:12:39]} Qf8 {[%emt 0:03:57]} 15. Bc4 {[%emt 0:12:34]} h6 {[%emt 0:03:50]} 16. Bh4 {[%emt 0:00:46]} g5 {[%emt 0:08:44]} 17. Bg3 {[%emt 0:00:18]} Ne8 {[%emt 0:08:50]} 18. Bb3 {[%emt 0:02:15]} exd5 {[%emt 0:02:14]} 19. Nxd5 {[%emt 0:14:30]} Qc5 {[%emt 0:01:41]} 20. Qe2 {[%emt 0:01:07]} Be6 {[%emt 0:01:37]} 21. Rd3 {[%emt 0:01:00]} Bxd5 {[%emt 0:01:02]} 22. Bxd5 {[%emt 0:00:34]} c6 {[%emt 0:01:09]} 23. Bb3 {[%emt 0:01:24]} Nc7 {[%emt 0:01:24]} ({Better is} 23... Rxd3 $14 24. Qxd3 Nf6) 24. h4 {[%emt 0:00:29]} (24. Qh5 {with more complications.} Ne6 25. Rf3 Qxa5 26. Rf1) 24... Qe7 {[%emt 0:00:54]} 25. hxg5 {[%emt 0:00:27]} (25. Rad1 $16) 25... hxg5 {[%emt 0:00:01]} 26. Rad1 {[%emt 0:00:20]} Bf6 {[%emt 0:01:37]} 27. Qg4 {[%emt 0:02:08]} Rxd3 {[%emt 0:01:18]} 28. Rxd3 {[%emt 0:00:06]} Rd8 {[%emt 0:00:06]} 29. Qf5 {[%emt 0:02:16]} (29. Rf3 $16 {aiming for Rf5.} Nb5 30. Qh5) 29... Rxd3 $11 {[%emt 0:00:31]} 30. cxd3 {[%emt 0:00:06]} Nb5 $1 {[%emt 0:00:44]} 31. Qg6+ {[%emt 0:02:23]} Kf8 {[%emt 0:00:49]} 32. Qh5 {[%emt 0:00:06]} Kg7 {[%emt 0:00:47]} 33. Kh2 {[%emt 0:00:47]} Nd4 {[%emt 0:00:19]} 34. Bc4 {[%emt 0:00:08]} Ne6 {[%emt 0:00:27]} 35. Qg4 {[%emt 0:01:34]} Nd8 {[%emt 0:00:58]} 36. Qf5 {[%emt 0:00:45]} Qc5 {[%emt 0:00:54] [#]} (36... Qd6 $11) 37. b4 {[%emt 0:00:39]} (37. f4 $1 $16 {[%cal Rf4g5]} gxf4 38. Bxf4) 37... Qd6 {[%emt 0:00:23]} 38. f3 {[%emt 0:01:43]} Qe7 $2 {[%emt 0:00:40] [#]} (38... Qd4 $11 {and Black stays safe.}) 39. d4 $1 $18 {[%emt 0:00:39]} Kf8 {[%emt 0:00:49]} (39... exd4 $2 40. e5 Bxe5 41. Bxe5+ Kf8 42. Bxd4 Qd6+ 43. Be5 Qh6+ 44. Qh3 Qxh3+ 45. Kxh3 $18) (39... Qxb4 $142 40. Bxe5 (40. dxe5 Be7 $11) 40... Bxe5+ 41. Qxe5+ Kg6 42. Qf5+ Kg7 43. Qxg5+ Kh7) 40. Bxe5 {[%emt 0:01:18]} Bxe5+ {[%emt 0:00:13]} 41. Qxe5 {[%emt 0:06:27]} Qxe5+ $2 {[%emt 0:16:25]} (41... Qxb4 42. Qc5+ (42. Qxg5 Qd6+ 43. Qe5 Qxe5+ 44. dxe5 c5 $11) 42... Qxc5 43. dxc5 Ke7) 42. dxe5 $18 {[%emt 0:00:08]} c5 {[%emt 0:02:59]} (42... Ke7 $142 43. Kg3 c5) 43. bxc5 $18 {[%emt 0:01:20]} Nc6 {[%emt 0:00:04]} 44. Bd5 {[%emt 0:00:13]} Nxa5 {[%emt 0:00:13]} 45. Kg3 {[%emt 0:05:31]} Ke7 {[%emt 0:01:51]} 46. Kf2 {[%emt 0:01:13]} Kd7 {[%emt 0:05:03]} 47. g3 {[%emt 0:01:54]} Nc6 {[%emt 0:00:17]} 48. f4 {[%emt 0:00:12]} (48. Bxf7 Nxe5 49. Bd5 Nd3+ 50. Ke3 Nxc5 $18) 48... gxf4 {[%emt 0:03:45]} 49. gxf4 {[%emt 0:00:07]} (49. Bxf7 fxg3+ (49... Nxe5 50. Bd5 $11) 50. Kxg3 Nxe5 $15) 49... a5 {[%emt 0:00:31]} 50. Ke3 {[%emt 0:00:38]} a4 {[%emt 0:00:09]} 51. Kd3 {[%emt 0:00:48]} Nb4+ {[%emt 0:02:30]} 52. Kc4 {[%emt 0:01:16]} Na6 {[%emt 0:00:38]} 53. Bxf7 {[%emt 0:04:49]} ({Weaker is} 53. Bxb7 a3 54. Kc3 (54. Bxa6 $2 a2 $19) 54... Nxc5 $11) 53... a3 {[%emt 0:01:01]} 54. Kb5 {[%emt 0:00:39]} Nc7+ {[%emt 0:00:59]} 55. Kb4 {[%emt 0:02:30]} Na6+ {[%emt 0:00:35]} 56. Kxa3 {[%emt 0:00:07]} Nxc5 {[%emt 0:00:03]} 57. Bd5 {[%emt 0:00:13]} Nd3 {[%emt 0:00:32]} 58. e6+ {[%emt 0:00:06]} ({Worse is} 58. Bxb7 Nxf4 59. Bd5 Ng6 $11) 58... Ke7 {[%emt 0:01:13]} 59. f5 {[%emt 0:00:06]} ({Stronger than} 59. Bxb7 Nxf4 60. Kb3 Kxe6 $11) 59... b6 {[%emt 0:00:45]} 60. Ka4 {[%emt 0:00:14]} Ne5 {[%emt 0:00:17]} 61. Kb5 {[%emt 0:00:07]} Ng4 {[%emt 0:00:12]} 62. Kxb6 {[%emt 0:00:08]} Kd6 {[%emt 0:00:03]} 63. Kb5 {[%emt 0:00:17]} Nf6 {[%emt 0:00:05]} 64. Kc4 {[%emt 0:00:07]} Ke5 {[%emt 0:00:09]} 65. Kc5 {[%emt 0:00:18]} Ng8 {[%emt 0:00:09]} 66. Kc6 {[%emt 0:00:09]} 1-0

[Event "Dutch Meesterklasse 2024-25"]
[Site "Netherlands"]
[Date "2024.09.22"]
[Round "1.7"]
[White "Willemze, Thomas"]
[Black "Van de Oudeweetering, Arthur"]
[Result "1-0"]
[ECO "C49"]
[WhiteElo "2318"]
[BlackElo "2253"]
[Annotator "RC"]
[PlyCount "87"]
[EventDate "2024.09.21"]
[EventType "team-tourn"]
[EventCountry "NED"]
[SourceTitle "playchess.com"]
[Source "ChessBase"]
[SourceQuality "1"]
[TimeControl "40/5400+30:1800+30"]

1. e4 {[%emt 0:00:05]} e5 {[%emt 0:00:05]} 2. Nf3 {[%emt 0:00:08]} Nc6 {[%emt 0:00:07]} 3. Nc3 {[%emt 0:00:04]} Nf6 {[%emt 0:00:05]} 4. Bb5 {[%emt 0:00:04]} Bb4 {[%emt 0:01:50]} 5. O-O {[%emt 0:00:08]} O-O {[%emt 0:00:12]} 6. Bxc6 {[%emt 0:00:23]} dxc6 {[%emt 0:00:37]} 7. d3 {[%emt 0:00:07]} Bxc3 {[%emt 0:22:41]} 8. bxc3 {[%emt 0:00:10]} Bg4 {[%emt 0:00:11]} 9. h3 {[%emt 0:02:32]} Bxf3 {[%emt 0:01:43]} 10. Qxf3 {[%emt 0:00:22]} Qd6 {[%emt 0:11:55]} 11. a4 {[%emt 0:08:30]} a5 {[%emt 0:13:43]} 12. Qe3 {[%emt 0:12:27]} c5 {[%emt 0:14:00]} 13. f4 {[%emt 0:06:59]} exf4 {[%emt 0:00:53]} 14. Qxf4 {[%emt 0:06:01]} Qxf4 {[%emt 0:01:32]} 15. Bxf4 {[%emt 0:00:02]} Rac8 {[%emt 0:00:12]} 16. c4 {[%emt 0:05:25]} Rfe8 {[%emt 0:02:18]} 17. Bd2 {[%emt 0:02:32]} b6 {[%emt 0:00:46]} 18. g4 {[%emt 0:08:42]} Nd7 {[%emt 0:02:19]} 19. Rf2 {[%emt 0:03:42]} Ne5 {[%emt 0:02:20]} 20. Raf1 {[%emt 0:00:25]} Re7 {[%emt 0:00:21]} 21. Kg2 {[%emt 0:05:47]} Nc6 {[%emt 0:02:11]} 22. g5 {[%emt 0:02:45]} Nd4 {[%emt 0:03:11]} 23. Be3 {[%emt 0:00:04]} Rd8 {[%emt 0:01:09]} 24. h4 {[%emt 0:00:53]} Rdd7 {[%emt 0:08:25]} 25. h5 {[%emt 0:02:50]} Re6 {[%emt 0:00:19]} 26. Kg3 {[%emt 0:02:41]} h6 {[%emt 0:03:35]} 27. gxh6 {[%emt 0:01:19]} gxh6 {[%emt 0:00:02]} 28. Rg1 {[%emt 0:07:32]} Kf8 {[%emt 0:00:40]} 29. Kg2 {[%emt 0:01:57]} Ke7 {[%emt 0:03:11]} 30. Kf1 {[%emt 0:00:12]} Rf6 {[%emt 0:01:09]} 31. Rxf6 {[%emt 0:00:58]} Kxf6 {[%emt 0:00:02]} 32. Bxh6 {[%emt 0:00:24]} Ne6 {[%emt 0:01:04]} 33. Rg8 {[%emt 0:02:34]} Ke5 {[%emt 0:00:48]} 34. Ke2 {[%emt 0:03:34]} f6 {[%emt 0:01:06]} 35. Bc1 {[%emt 0:04:08]} f5 {[%emt 0:01:51]} 36. Bb2+ {[%emt 0:01:14]} Kf4 {[%emt 0:00:07]} 37. Rg6 {[%emt 0:01:14]} Nd4+ {[%emt 0:01:41]} 38. Bxd4 {[%emt 0:00:10]} cxd4 {[%emt 0:00:02]} 39. Rf6 {[%emt 0:00:08]} Kg4 {[%emt 0:00:56]} 40. Rxf5 {[%emt 0:00:07]} Rh7 {[%emt 0:00:18]} 41. c5 {[%emt 0:33:53]} Rxh5 {[%emt 0:11:25]} 42. Rxh5 {[%emt 0:00:00]} Kxh5 {[%emt 0:00:06]} 43. cxb6 {[%emt 0:00:00]} cxb6 {[%emt 0:00:03]} 44. Kd2 {[%emt 0:00:00]} 1-0

[Event "Dutch Meesterklasse 2024-25"]
[Site "Netherlands"]
[Date "2024.09.22"]
[Round "1.8"]
[White "Ondersteijn, Niels"]
[Black "Elgersma, Onno"]
[Result "1-0"]
[ECO "A34"]
[WhiteElo "2347"]
[BlackElo "2320"]
[Annotator "RC"]
[PlyCount "103"]
[EventDate "2024.09.21"]
[EventType "team-tourn"]
[EventCountry "NED"]
[SourceTitle "playchess.com"]
[Source "ChessBase"]
[SourceQuality "1"]
[TimeControl "40/5400+30:1800+30"]

1. c4 {[%emt 0:00:03]} Nf6 {[%emt 0:03:07]} 2. g3 {[%emt 0:00:11]} c5 {[%emt 0:03:55]} 3. Bg2 {[%emt 0:00:11]} d5 {[%emt 0:00:38]} 4. cxd5 {[%emt 0:00:21]} Nxd5 {[%emt 0:00:06]} 5. Nc3 {[%emt 0:00:05]} Nc7 {[%emt 0:00:14]} 6. Nf3 {[%emt 0:00:49]} Nc6 {[%emt 0:00:31]} 7. a3 {[%emt 0:01:04]} g6 {[%emt 0:01:54]} 8. O-O {[%emt 0:11:53]} Bg7 {[%emt 0:00:33]} 9. d3 {[%emt 0:00:38]} O-O {[%emt 0:03:39]} 10. Be3 {[%emt 0:08:23]} Ne6 {[%emt 0:08:37]} 11. Rc1 {[%emt 0:06:45]} Bd7 {[%emt 0:19:45]} 12. Nd2 {[%emt 0:10:03]} Rc8 {[%emt 0:07:43]} 13. Nde4 {[%emt 0:14:53]} b6 {[%emt 0:04:40]} 14. Ng5 {[%emt 0:01:37]} Ncd4 {[%emt 0:04:08]} 15. Nxe6 {[%emt 0:06:32]} Bxe6 {[%emt 0:01:42]} 16. Bxd4 {[%emt 0:00:59]} Qxd4 {[%emt 0:03:10]} 17. Bb7 {[%emt 0:07:31]} Rb8 {[%emt 0:04:35]} 18. Bc6 {[%emt 0:02:10]} Rfc8 {[%emt 0:04:58]} 19. Bb5 {[%emt 0:03:07]} h5 {[%emt 0:04:24]} 20. Qa4 {[%emt 0:01:13]} Qxa4 {[%emt 0:03:23]} 21. Nxa4 {[%emt 0:00:52]} h4 {[%emt 0:03:05]} 22. Nc3 {[%emt 0:03:23]} Rd8 {[%emt 0:02:28]} 23. Rfd1 {[%emt 0:06:38]} Rbc8 {[%emt 0:02:12]} 24. Kf1 {[%emt 0:01:49]} Bf6 {[%emt 0:01:10]} 25. Bc4 {[%emt 0:04:04]} Bh3+ {[%emt 0:00:42]} 26. Ke1 {[%emt 0:02:03]} Kg7 {[%emt 0:00:32]} 27. a4 {[%emt 0:01:15]} Bd7 {[%emt 0:03:10]} 28. Bb5 {[%emt 0:02:01]} Bf5 {[%emt 0:00:50]} 29. Ra1 {[%emt 0:00:46]} Rd4 {[%emt 0:00:59]} 30. Bc4 {[%emt 0:00:33]} a5 {[%emt 0:07:03]} 31. Ra3 {[%emt 0:01:59]} hxg3 {[%emt 0:00:32]} 32. hxg3 {[%emt 0:00:06]} Rh8 {[%emt 0:00:17]} 33. Nd5 {[%emt 0:01:43]} Rh1+ {[%emt 0:01:18]} 34. Kd2 {[%emt 0:00:02]} Rh2 {[%emt 0:00:30]} 35. Rb3 {[%emt 0:01:17]} Rxf2 {[%emt 0:00:46]} 36. Nxf6 {[%emt 0:00:24]} Kxf6 {[%emt 0:00:36]} 37. Rxb6+ {[%emt 0:00:04]} e6 {[%emt 0:00:13]} 38. Ra6 {[%emt 0:01:20]} Rg4 {[%emt 0:00:47]} 39. Rg1 {[%emt 0:00:26]} Rg5 {[%emt 0:00:28]} 40. Rxa5 {[%emt 0:00:34]} Bg4 {[%emt 0:00:06]} 41. d4 {[%emt 0:04:11]} Rh5 {[%emt 0:25:19]} 42. Rxc5 {[%emt 0:01:28]} Rhh2 {[%emt 0:00:15]} 43. Re5 {[%emt 0:00:12]} Rh8 {[%emt 0:00:38]} 44. a5 {[%emt 0:03:17]} Rb8 {[%emt 0:00:45]} 45. b3 {[%emt 0:01:49]} Ke7 {[%emt 0:01:16]} 46. a6 {[%emt 0:02:52]} Ra8 {[%emt 0:02:00]} 47. b4 {[%emt 0:02:49]} Kd6 {[%emt 0:00:41]} 48. b5 {[%emt 0:01:53]} Rh2 {[%emt 0:03:17]} 49. b6 {[%emt 0:01:36]} f6 {[%emt 0:00:30]} 50. b7 {[%emt 0:01:07]} Rb8 {[%emt 0:00:32]} 51. Rb5 {[%emt 0:02:28]} Bf3 {[%emt 0:00:29]} 52. a7 {[%emt 0:00:17]} 1-0

[Event "Dutch Meesterklasse 2024-25"]
[Site "Netherlands"]
[Date "2024.09.22"]
[Round "1.8"]
[White "Van Beek, Lucien"]
[Black "De Jong, Jan-Willem"]
[Result "1/2-1/2"]
[ECO "D12"]
[WhiteElo "2341"]
[BlackElo "2413"]
[Annotator "TA"]
[PlyCount "85"]
[EventDate "2024.09.21"]
[EventType "team-tourn"]
[EventCountry "NED"]
[SourceTitle "playchess.com"]
[Source "ChessBase"]
[SourceQuality "1"]
[TimeControl "40/5400+30:1800+30"]

{[%evp 13,85,28,32,10,15,0,14,4,25,-28,-28,-52,-58,-90,-31,-19,0,0,0,-33,-14,-50,-44,-38,-62,-59,-41,-46,-52,-143,-134,-134,-155,-139,-138,-157,-138,-152,-117,-158,-160,-157,-145,-164,-151,-190,-183,-186,-120,-106,-69,-59,-94,-94,-95,-88,-2,-6,-8,-57,0,0,0,0,0,-8,-8,-53,0,0,0,0,0,0]} 1. d4 {[%emt 0:08:03]} d5 {[%emt 1:31:00]} 2. c4 {[%emt 0:00:26]} c6 {[%emt 0:00:30]} 3. Nc3 {[%emt 0:00:05]} Nf6 {[%emt 0:00:00]} 4. e3 {[%emt 0:00:13]} Bf5 {[%emt 0:00:00]} 5. Nf3 {[%emt 0:01:39]} e6 {[%emt 0:00:00]} 6. Nh4 {[%emt 0:01:46]} Bg6 {[%emt 0:00:00]} 7. Nxg6 {[%emt 0:01:13]} hxg6 {[%emt 0:00:00]} 8. Qc2 {[%emt 0:09:17]} Nbd7 {[%emt 0:00:00]} 9. Be2 {[%emt 0:11:15]} Be7 {[%emt 0:00:00]} 10. Bd2 {[%emt 0:05:29]} a6 {[%emt 0:00:00]} 11. e4 {[%emt 0:15:10]} (11. c5 $142) 11... dxc4 $11 {[%emt 0:00:00]} 12. Bxc4 {[%emt 0:16:25]} Nb6 {[%emt 0:00:00][%csl LRc4,LRd4]} 13. Qd3 {[%emt 0:01:01]} Nxc4 {[%emt 0:00:00]} (13... c5 $17 14. Bxe6 fxe6) 14. Qxc4 $15 {[%emt 0:00:05]} O-O {[%emt 0:00:00]} 15. e5 {[%emt 0:03:30]} Nd5 {[%emt 0:00:00]} 16. h4 {[%emt 0:06:21]} Nb4 {[%emt 0:00:00][%cal Ob7b5] [#] And now ...b5! would win.} (16... Bxh4 17. Ne4 $14) 17. O-O-O {[%emt 0:03:42]} b5 $36 {[%emt 0:00:00][%mdl 2048] White is under pressure.} 18. Qe2 {[%emt 0:00:09][%cal Od2g5]} Qxd4 {[%emt 0:00:00][%cal Od4d3] Threatens to win with ...Qd3!} 19. Bg5 {[%emt 0:06:45]} Bxg5+ {[%emt 0:00:00]} 20. hxg5 {[%emt 0:00:04]} Qf4+ {[%emt 0:00:00]} 21. Qd2 {[%emt 0:04:19]} (21. Kb1 $15) 21... Nd3+ $17 {[%emt 0:00:00]} ({Much worse is} 21... Qxe5 $6 22. Rh4 Nd5 23. Re1 $11) 22. Kb1 {[%emt 0:00:39]} Qxd2 {[%emt 0:00:00]} 23. Rxd2 {[%emt 0:00:01]} Nxe5 {[%emt 0:00:00]} 24. Ne4 {[%emt 0:02:38]} Rfd8 {[%emt 0:00:00]} 25. Nd6 {[%emt 0:00:08]} f6 {[%emt 0:04:15]} 26. f4 {[%emt 0:00:42]} Nf7 {[%emt 0:00:25]} 27. Rhd1 {[%emt 0:00:55]} fxg5 {[%emt 0:01:57]} 28. fxg5 {[%emt 0:00:19]} Nxg5 {[%emt 0:00:16]} 29. Re1 {[%emt 0:00:23]} Ra7 {[%emt 0:01:51]} 30. Re5 {[%emt 0:00:02]} Nf7 {[%emt 0:01:03]} (30... Rad7 $19 {aiming for ...Nh7.} 31. Rxg5 Kh7 (31... Rxd6 $2 32. Re2 $19)) 31. Rxe6 {[%emt 0:00:14]} Rad7 {[%emt 0:00:04]} 32. Nxf7 {[%emt 0:00:07]} Kxf7 {[%emt 0:01:20]} 33. Rxd7+ {[%emt 0:00:41]} Rxd7 {[%emt 0:00:04]} (33... Kxe6 $2 {too greedy.} 34. Rxd8 g5 35. Ra8 $18) 34. Rxc6 $15 {[%emt 0:00:04][%mdl 4096] Endgame. KR-KR} Rd2 {[%emt 0:03:18]} ({Black should try} 34... Rd1+ $17 35. Kc2 Rg1 36. Rxa6 Rxg2+ 37. Kc3 g5) 35. Rxa6 $11 {[%emt 0:00:32]} Rxg2 {[%emt 0:00:05]} 36. Ra5 {[%emt 0:02:02]} (36. Ra7+ $11 Kg8 37. Ra5) 36... Rg5 {[%emt 0:00:09]} (36... b4 $1 $15) 37. a4 {[%emt 0:01:38]} Rg1+ {[%emt 0:00:17]} 38. Kc2 {[%emt 0:00:06]} bxa4 {[%emt 0:00:06]} 39. Rxa4 {[%emt 0:00:08]} g5 {[%emt 0:00:32]} 40. b4 {[%emt 0:00:22]} Kg6 {[%emt 0:02:35]} ({Black should play} 40... g4 $15) 41. b5 {[%emt 0:30:35] The position is equal.} Rf1 {[%emt 0:30:39]} 42. b6 {[%emt 0:00:00]} Rf8 {[%emt 0:00:00]} 43. Kd3 {[%emt 0:00:00] Whites escaped into a draw.   Weighted Error Value: White=0.22 (precise) /Black=0.18 (very precise) .  Mistake:       	White=3     	Black=5      Inaccurate:     	White=5     	Black=1      OK:         	White=13    	Black=15     Best:        	White=2     	Black=2} 1/2-1/2